bitfinex-derivatives/quotes_SOLF0:USTF0_20241224
["timestamp","ask_amount","ask_price","bid_price","bid_amount"]
[1735056329191,3.76,197.25,197.18,12.32824169]
[1735056329192,2.5376,197.22,197.18,12.32824169]
[1735056329595,3.76,197.25,197.18,12.32824169]
[1735056329790,2.5376,197.22,197.18,12.32824169]
[1735056330692,3.76,197.25,197.18,12.32824169]
[1735056331282,2.5376,197.23,197.18,12.32824169]
[1735056331495,3.76,197.23,197.14,12.32824169]
[1735056331992,3.76,197.23,197.14,14.86674169]
[1735056332187,3.76,197.23,197.14,12.32824169]
[1735056332386,2.5377,197.21,197.16,2.5383]
[1735056332989,2.5385,197.15,197.11,56.62264306]
[1735056333192,2.5385,197.15,197.07,372.0290258]
[1735056333193,3.76,197.17,197.08,54.08374306]
[1735056333490,3.76,197.16,197.08,54.08374306]
[1735056333691,2.5391,197.11,197.08,54.08374306]
[1735056333889,3.76,197.16,197.08,54.08374306]
[1735056334089,2.5387,197.14,197.1,2.5391]
[1735056334390,3.76,197.16,197.08,54.08374306]
[1735056334593,2.5387,197.14,197.06,2.5396]
[1735056334788,3.76,197.16,197.06,2.5396]
[1735056335187,12.32824169,197.15,197.02,54.08374306]
[1735056335387,1.5486,197.14,197.02,66.41198475]
[1735056335586,3.76,197.13,197.05,12.32824169]
[1735056337291,12.32824169,197.2,197.05,12.32824169]
[1735056337488,2.5385,197.16,197.02,4.8052]
[1735056337693,2.5385,197.16,197.07,12.32824169]
[1735056337996,2.5386,197.15,197.08,2.5393]
[1735056339092,2.5386,197.15,197.08,14.86754169]
[1735056339490,2.5386,197.15,197.08,12.32824169]
[1735056339696,12.32824169,197.2,197.08,12.32824169]
[1735056339697,3.76,197.16,197.08,12.32824169]
[1735056339899,3.76,197.17,197.08,12.32824169]
[1735056340897,2.5386,197.14,197.09,2.5393]
[1735056341395,3.76,197.17,197.09,2.5393]
[1735056341590,3.76,197.17,197.1,2.5391]
[1735056342186,6.2984,197.17,197.11,14.86724169]
[1735056342791,2.5384,197.16,197.11,12.32824169]
[1735056342995,2.5384,197.16,197.1,12.32824169]
[1735056343685,4.663,197.25,197.13,12.32824169]
[1735056343886,4.663,197.25,197.16,12.32824169]
[1735056344290,4.663,197.25,197.11,4.7299]
[1735056344489,12.56690495,197.25,197.18,7.90390495]
[1735056346101,2.5377,197.22,197.18,7.90390495]
[1735056346391,2.5377,197.22,197.15,14.89205588]
[1735056346594,2.5377,197.22,197.15,12.35355588]
[1735056346891,2.5377,197.22,197.18,12.35355588]
[1735056347102,2.5378,197.21,197.15,12.35355588]
[1735056347302,3.76,197.2,197.11,4.7299]
[1735056347599,3.76,197.2,197.13,12.35355588]
[1735056348500,2.5382,197.18,197.13,12.35355588]
[1735056348800,3.76,197.2,197.13,12.35355588]
[1735056350199,2.5386,197.14,197.1,12.35355588]
[1735056350395,3.76,197.2,197.1,12.35355588]
[1735056350904,2.5382,197.17,197.11,2.539]
[1735056352094,2.5381,197.19,197.13,12.35355588]
[1735056353010,2.5381,197.18,197.13,12.35355588]
[1735056353202,3.76,197.2,197.1,12.35355588]
[1735056353400,3.76,197.2,197.1,14.89265588]
[1735056354406,2.5386,197.15,197.1,14.89265588]
[1735056355910,2.5386,197.15,197.1,16.13505522]
[1735056357407,2.5386,197.15,197.1,2.5391]
[1735056357601,2.5386,197.15,197.1,16.13505522]
[1735056359610,2.5386,197.15,197.1,13.59595522]
[1735056359806,2.5386,197.15,197.11,2.539]
[1735056360209,6.2983,197.17,197.13,16.13465522]
[1735056360707,2.5383,197.17,197.13,16.13465522]
[1735056361104,2.5381,197.18,197.13,16.13465522]
[1735056361309,4.6722,197.25,197.16,13.59595522]
[1735056361509,3.76,197.24,197.16,13.59595522]
[1735056361901,4.6722,197.25,197.16,13.59595522]
[1735056362105,3.76,197.24,197.16,13.59595522]
[1735056362915,4.6722,197.25,197.11,3.085]
[1735056363107,3.76,197.24,197.16,13.59595522]
[1735056363309,2.5376,197.22,197.17,2.5382]
[1735056365717,2.5375,197.23,197.19,2.5379]
[1735056365916,20.90011609,197.37,197.22,13.59595522]
[1735056366113,3.76,197.33,197.25,13.59595522]
[1735056366318,2.5365,197.31,197.25,13.59595522]
[1735056366518,25.57931609,197.37,197.25,13.59595522]
[1735056366717,2.5369,197.28,197.22,2.5376]
[1735056366916,2.5369,197.28,197.21,18.28995522]
[1735056368218,3.76,197.29,197.23,8.69249252]
[1735056368618,12.45249252,197.29,197.15,3.0677]
[1735056368822,8.69249252,197.25,197.15,4.6954]
[1735056369017,8.69249252,197.25,197.17,8.69249252]
[1735056369324,2.5379,197.2,197.17,8.69249252]
[1735056371424,8.69249252,197.21,197.14,8.69249252]
[1735056371622,12.45249252,197.23,197.14,8.69249252]
[1735056371823,12.45249252,197.23,197.16,8.69249252]
[1735056372017,2.538,197.19,197.16,8.69249252]
[1735056372223,12.45249252,197.23,197.16,8.69249252]
[1735056372629,2.5376,197.22,197.18,8.69249252]
[1735056372817,3.76,197.23,197.18,8.69249252]
[1735056373222,3.76,197.23,197.2,8.69249252]
[1735056374532,2.5376,197.22,197.18,8.69249252]
[1735056375031,2.5378,197.21,197.18,8.69249252]
[1735056375225,3.76,197.23,197.18,8.69249252]
[1735056375422,8.69249252,197.19,197.09,54.08374306]
[1735056375622,2.5385,197.16,197.09,54.08374306]
[1735056375929,1.5618,197.18,197.09,54.08374306]
[1735056375930,3.76,197.15,197.1,8.69249252]
[1735056376125,3.76,197.15,197.14,8.69249252]
[1735056376721,2.5377,197.21,197.15,2.5384]
[1735056376926,70.52313407,197.26,197.11,1.4922]
[1735056376927,3.76,197.22,197.17,8.69249252]
[1735056377226,3.76,197.22,197.19,8.69249252]
[1735056377422,1.5618,197.27,197.21,8.69249252]
[1735056377627,20.90011609,197.31,197.23,8.69249252]
[1735056377823,3.76,197.29,197.23,8.69249252]
[1735056378230,3.76,197.29,197.22,2.5376]
[1735056378429,3.76,197.28,197.11,1.4922]
[1735056378629,2.5373,197.25,197.17,2.5381]
[1735056378934,3.76,197.27,197.15,13.58032308]
[1735056379128,3.76,197.27,197.18,13.58032308]
[1735056379329,3.76,197.27,197.19,2.538]
[1735056379922,2.5375,197.23,197.18,13.58032308]
[1735056380126,3.76,197.27,197.15,13.58032308]
[1735056380524,3.76,197.27,197.15,16.11872308]
[1735056381529,3.76,197.27,197.18,2.538]
[1735056382234,3.76,197.27,197.11,1.4922]
[1735056382235,3.76,197.27,197.21,13.58032308]
[1735056382630,3.76,197.27,197.18,13.58032308]
[1735056383234,2.5372,197.26,197.19,2.538]
[1735056383537,3.76,197.27,197.18,13.58032308]
[1735056383730,1.5025,197.34,197.22,2.5376]
[1735056383731,2.5368,197.29,197.22,2.5376]
[1735056383936,1.5025,197.34,197.24,13.58032308]
[1735056384137,3.76,197.33,197.24,13.58032308]
[1735056384638,56.52,197.35,197.24,13.58032308]
[1735056385334,1.5336,197.4,197.27,13.58032308]
[1735056385335,15.11392308,197.4,197.27,13.58032308]
[1735056385540,2.5361,197.34,197.28,2.5367]
[1735056385740,2.5361,197.34,197.27,13.58032308]
[1735056386140,3.76,197.35,197.27,13.58032308]
[1735056386341,3.76,197.39,197.3,13.58032308]
[1735056386541,3.76,197.4,197.31,1.5265]
[1735056386935,3.76,197.42,197.33,13.58032308]
[1735056387239,13.58032308,197.45,197.33,13.58032308]
[1735056387442,3.76,197.44,197.33,13.58032308]
[1735056388042,2.5353,197.4,197.33,13.58032308]
[1735056388438,3.76,197.44,197.34,2.536]
[1735056388737,3.76,197.43,197.34,2.536]
[1735056389042,13.58032308,197.5,197.36,13.58032308]
[1735056389241,3.76,197.47,197.37,1.5217]
[1735056389437,13.58032308,197.5,197.37,1.5217]
[1735056389742,3.76,197.47,197.37,1.5217]
[1735056390039,13.58032308,197.53,197.39,13.58032308]
[1735056390232,3.76,197.52,197.4,3.1698]
[1735056390836,3.76,197.52,197.4,5.705]
[1735056391034,3.76,197.52,197.4,3.1698]
[1735056392038,2.5347,197.45,197.4,3.1698]
[1735056392541,3.76,197.48,197.41,13.58032308]
[1735056392738,4.9014,197.55,197.44,13.58032308]
[1735056392943,3.76,197.54,197.44,13.58032308]
[1735056393342,2.5337,197.53,197.46,2.5345]
[1735056393540,2.5337,197.53,197.47,13.58032308]
[1735056393742,2.5337,197.53,197.47,15.15592308]
[1735056394047,3.76,197.54,197.48,2.5342]
[1735056394236,2.5334,197.55,197.48,4.1603]
[1735056394943,2.5334,197.55,197.48,1.6261]
[1735056395241,2.5332,197.57,197.5,13.58032308]
[1735056395448,3.76,197.6,197.53,13.58032308]
[1735056395743,2.5327,197.61,197.54,2.5335]
[1735056396642,2.5327,197.61,197.55,2.5333]
[1735056396846,2.5327,197.61,197.56,13.58032308]
[1735056398150,2.5325,197.62,197.57,2.5331]
[1735056398955,2.5326,197.61,197.56,13.58032308]
[1735056399145,3.76,197.65,197.49,1.4969]
[1735056399146,3.76,197.65,197.53,13.58032308]
[1735056399550,13.58032308,197.64,197.5,13.58032308]
[1735056399747,2.5327,197.6,197.51,2.5338]
[1735056400048,13.58032308,197.64,197.51,2.5338]
[1735056400854,3.76,197.65,197.51,2.5338]
[1735056401254,2.5326,197.61,197.53,13.58032308]
[1735056401554,3.76,197.65,197.49,1.4969]
[1735056401555,3.76,197.65,197.56,13.58032308]
[1735056401756,2.5324,197.63,197.56,16.11342308]
[1735056402651,6.2922,197.65,197.58,2.5329]
[1735056402852,6.2922,197.65,197.59,13.58032308]
[1735056403952,6.2922,197.65,197.58,2.5329]
[1735056404356,75.56951059,197.72,197.59,13.58032308]
[1735056404558,5.3546,197.74,197.62,13.58032308]
[1735056405556,18.93492308,197.74,197.62,13.58032308]
[1735056405855,18.93492308,197.74,197.59,13.58032308]
[1735056406053,1.5718,197.73,197.59,13.58032308]
[1735056406458,2.5321,197.65,197.59,16.11312308]
[1735056406660,2.5321,197.65,197.59,13.58032308]
[1735056407670,2.5322,197.64,197.59,13.58032308]
[1735056409261,3.76,197.68,197.59,13.58032308]
[1735056409262,2.532,197.66,197.59,13.58032308]
[1735056409466,2.532,197.66,197.62,13.58032308]
[1735056410263,2.5323,197.64,197.59,13.58032308]
[1735056411064,124.0,197.63,197.26,2.12447053]
[1735056411266,13.58032308,197.54,197.41,13.58032308]
[1735056411569,3.76,197.55,197.41,13.58032308]
[1735056412161,3.76,197.55,197.39,3.76]
[1735056412361,3.76,197.55,197.46,13.58032308]
[1735056412564,13.58032308,197.58,197.4,18.2716154]
[1735056412565,2.533,197.58,197.52,13.58032308]
[1735056412769,3.126,197.62,197.52,13.58032308]
[1735056413658,2.5329,197.59,197.52,13.58032308]
[1735056413863,3.126,197.62,197.49,18.35632308]
[1735056414260,3.126,197.62,197.49,1.5732]
[1735056415274,2.5333,197.56,197.49,1.5732]
[1735056415469,3.76,197.59,197.46,13.58032308]
[1735056415667,3.76,197.59,197.49,13.58032308]
[1735056415971,3.76,197.61,197.49,13.58032308]
[1735056417468,2.5331,197.57,197.5,2.534]
[1735056417667,1.5058,197.63,197.55,13.58032308]
[1735056417869,15.07792308,197.69,197.55,13.58032308]
[1735056418073,2.5322,197.65,197.53,4.8527]
[1735056418275,2.5322,197.65,197.56,13.58032308]
[1735056419366,2.5322,197.64,197.57,2.533]
[1735056419571,3.76,197.68,197.56,13.58032308]
[1735056420175,3.76,197.68,197.54,21.65412424]
[1735056420377,2.5324,197.63,197.55,2.5332]
[1735056420677,3.76,197.68,197.55,2.5332]
[1735056420883,2.5325,197.63,197.56,2.5332]
[1735056421387,3.76,197.68,197.56,2.5332]
[1735056422287,2.5325,197.63,197.56,2.5332]
[1735056422586,3.76,197.68,197.54,21.65412424]
[1735056423301,1.4976,197.69,197.54,21.65412424]
[1735056423586,5.2576,197.69,197.54,21.65412424]
[1735056424689,2.5322,197.64,197.57,2.533]
[1735056425381,2.5325,197.62,197.56,2.5331]
[1735056425577,21.65412424,197.68,197.53,4.8527]
[1735056425988,2.5331,197.57,197.53,3.2547]
[1735056426287,3.76,197.63,197.53,3.2547]
[1735056426878,3.76,197.63,197.5,21.65412424]
[1735056427082,1.6418,197.62,197.5,21.65412424]
[1735056427883,2.5328,197.6,197.5,21.65412424]
[1735056428084,1.6418,197.62,197.5,21.65412424]
[1735056428983,1.6418,197.62,197.48,3.1276]
[1735056429289,1.4955,197.61,197.45,54.08374306]
[1735056429489,21.65412424,197.59,197.45,54.08374306]
[1735056429984,21.65412424,197.59,197.43,2.5349]
[1735056429985,2.5342,197.49,197.43,2.5349]
[1735056430593,3.76,197.53,197.41,1.5727]
[1735056430594,2.5349,197.44,197.41,1.5727]
[1735056430787,3.76,197.47,197.41,1.5727]
[1735056430982,3.76,197.47,197.39,54.08374306]
[1735056431189,2.5348,197.44,197.38,21.65412424]
[1735056431489,3.76,197.47,197.38,21.65412424]
[1735056431786,3.76,197.47,197.36,54.08374306]
[1735056432394,25.41412424,197.47,197.31,54.08374306]
[1735056433587,25.41412424,197.47,197.26,24.19112424]
[1735056433588,2.5361,197.34,197.26,24.19112424]
[1735056434192,3.76,197.37,197.26,21.65412424]
[1735056435388,8.4007,197.42,197.3,21.65412424]
[1735056435593,6.8783,197.42,197.33,2.5361]
[1735056436292,2.5354,197.39,197.31,2.5363]
[1735056436492,2.5354,197.39,197.3,21.65412424]
[1735056436689,2.5354,197.39,197.25,3.76]
[1735056436894,2.5354,197.39,197.3,21.70629687]
[1735056437289,6.8783,197.42,197.31,2.5364]
[1735056437495,2.5356,197.38,197.31,2.5364]
[1735056437692,6.8783,197.42,197.26,21.70629687]
[1735056438194,21.70629687,197.4,197.24,1.4912]
[1735056438497,2.5365,197.31,197.24,1.4912]
[1735056438998,2.5366,197.3,197.24,1.4912]
[1735056439197,3.76,197.32,197.24,1.4912]
[1735056439696,2.5367,197.29,197.24,1.4912]
[1735056440699,2.5368,197.28,197.24,1.4912]
[1735056441294,2.5368,197.28,197.1,21.70629687]
[1735056441500,2.5368,197.28,197.17,3.0242]
[1735056442100,2.537,197.27,197.17,3.0242]
[1735056442401,3.76,197.32,197.17,3.0242]
[1735056442795,1.5586,197.31,197.17,3.0242]
[1735056442996,2.5369,197.28,197.19,2.5379]
[1735056443302,1.5586,197.31,197.19,2.5379]
[1735056443901,2.537,197.27,197.19,2.5379]
[1735056444201,2.537,197.27,197.2,24.24409687]
[1735056444903,2.537,197.27,197.21,2.5377]
[1735056445202,2.5367,197.3,197.21,21.72724624]
[1735056445902,6.2967,197.3,197.21,21.72724624]
[1735056446104,6.2967,197.3,197.24,2.5373]
[1735056446698,3.76,197.3,197.22,1.602]
[1735056446901,3.76,197.3,197.25,2.5372]
[1735056447703,3.76,197.3,197.22,1.602]
[1735056448006,3.76,197.3,197.21,24.26484624]
[1735056448204,3.76,197.3,197.17,24.75144624]
[1735056448501,2.5372,197.25,197.19,2.5379]
[1735056449103,2.5371,197.26,197.17,24.75144624]
[1735056449297,2.5371,197.26,197.2,2.5378]
[1735056450206,2.5369,197.28,197.21,2.5377]
[1735056451299,3.76,197.3,197.19,2.5379]
[1735056451606,3.76,197.3,197.21,21.72724624]
[1735056451799,3.76,197.32,197.24,2.5373]
[1735056451995,3.76,197.32,197.25,1.5468]
[1735056452200,3.76,197.32,197.26,13.57523662]
[1735056452497,2.5366,197.31,197.26,13.57523662]
[1735056453100,3.76,197.34,197.26,13.57523662]
[1735056453299,2.5363,197.33,197.26,17.76543662]
[1735056454301,3.76,197.34,197.26,4.1902]
[1735056454501,2.5363,197.32,197.26,1.6532]
[1735056454706,3.76,197.38,197.26,1.6532]
[1735056455505,2.5358,197.36,197.3,2.5365]
[1735056457209,2.5359,197.35,197.3,2.5365]
[1735056457610,2.5359,197.35,197.29,2.5367]
[1735056458806,3.76,197.38,197.29,24.25445657]
[1735056459510,2.536,197.35,197.29,24.25445657]
[1735056459700,3.76,197.38,197.29,24.25445657]
[1735056460011,2.5362,197.33,197.29,21.71775657]
[1735056462709,2.536,197.35,197.3,2.5365]
[1735056462911,3.76,197.38,197.29,21.71775657]
[1735056463110,1.5537,197.46,197.29,21.71775657]
[1735056463315,2.5356,197.38,197.33,24.25385657]
[1735056463612,2.5356,197.38,197.34,3.1917]
[1735056463808,2.5356,197.38,197.34,4.7677]
[1735056464014,2.5356,197.38,197.34,7.3037]
[1735056464214,2.5357,197.37,197.34,7.3037]
[1735056464410,2.5357,197.37,197.34,4.7677]
[1735056465210,25.47775657,197.41,197.27,54.87708284]
[1735056465808,2.5368,197.28,197.27,54.87708284]
[1735056466410,3.76,197.34,197.2,76.59483941]
[1735056466611,1.5221,197.33,197.2,76.59483941]
[1735056467515,1.5221,197.33,197.2,21.71775657]
[1735056468117,2.5367,197.3,197.2,21.71775657]
[1735056468420,1.5221,197.33,197.2,21.71775657]
[1735056468619,2.5367,197.3,197.24,2.5373]
[1735056468818,3.76,197.34,197.2,21.71775657]
[1735056470216,2.5373,197.25,197.2,21.71775657]
[1735056470416,3.76,197.27,197.2,21.71775657]
[1735056470716,6.297,197.27,197.21,2.5377]
[1735056471016,6.297,197.27,197.2,21.71775657]
[1735056471017,1.6393,197.36,197.25,21.71775657]
[1735056471319,1.5419,197.4,197.25,21.71775657]
[1735056471517,3.76,197.39,197.26,1.6102]
[1735056471716,2.5367,197.3,197.26,1.6102]
[1735056471917,3.76,197.33,197.26,1.6102]
[1735056472421,2.5364,197.31,197.26,1.6102]
[1735056472921,6.2963,197.33,197.26,4.1472]
[1735056473122,1.5419,197.4,197.27,21.71775657]
[1735056473311,3.76,197.39,197.27,23.22645657]
[1735056474011,2.5362,197.34,197.28,2.5367]
[1735056474215,3.76,197.39,197.28,2.5367]
[1735056474417,3.76,197.39,197.27,23.22645657]
[1735056475118,2.5364,197.32,197.27,23.22645657]
[1735056475318,3.76,197.39,197.27,23.22645657]
[1735056475715,2.5364,197.32,197.27,23.22645657]
[1735056476121,2.5365,197.31,197.27,23.22645657]
[1735056476317,3.76,197.39,197.27,23.22645657]
[1735056477026,2.5361,197.34,197.29,2.5367]
[1735056477427,2.5362,197.33,197.27,23.22645657]
[1735056477723,3.76,197.32,197.27,1.5087]
[1735056477923,3.76,197.32,197.26,1.6102]
[1735056478723,2.537,197.27,197.26,1.6102]
[1735056479223,3.76,197.32,197.24,1.6211]
[1735056479418,2.5372,197.25,197.22,13.57946794]
[1735056480225,3.76,197.32,197.21,1.5399]
[1735056480423,2.5374,197.24,197.21,1.5399]
[1735056480726,3.76,197.32,197.2,21.72898092]
[1735056480925,5.2949,197.31,197.2,21.72898092]
[1735056481129,2.5375,197.23,197.2,21.72898092]
[1735056481525,3.76,197.25,197.2,21.72898092]
[1735056481725,3.76,197.25,197.17,3.1925]
[1735056483422,3.76,197.25,197.17,1.6507]
[1735056483627,3.76,197.25,197.12,54.87708284]
[1735056483827,2.5384,197.17,197.12,54.87708284]
[1735056484127,2.5384,197.17,197.11,5.8199]
[1735056484128,2.5384,197.17,197.11,60.69698284]
[1735056484329,3.76,197.19,197.11,58.15798284]
[1735056484633,2.5384,197.16,197.11,3.2809]
[1735056485227,2.5384,197.16,197.11,1.6478]
[1735056485433,2.5386,197.15,197.11,1.6478]
[1735056486433,21.72898092,197.29,197.11,1.6478]
[1735056486627,4.54647979,197.28,197.11,1.6478]
[1735056486821,3.76,197.28,197.11,1.6478]
[1735056487333,2.538,197.2,197.14,2.5385]
[1735056487529,21.72898092,197.29,196.9,21.72898092]
[1735056487530,3.76,197.19,196.94,76.57114339]
[1735056487834,3.76,197.18,197.06,21.72898092]
[1735056488021,3.76,197.17,197.07,2.5395]
[1735056488226,3.76,197.16,197.07,2.5395]
[1735056488425,3.76,197.15,197.07,2.5395]
[1735056489435,2.5389,197.12,197.06,21.72898092]
[1735056490353,2.5392,197.1,197.04,3.1393]
[1735056490832,2.5392,197.1,197.04,1.5932]
[1735056491235,2.5395,197.08,197.04,1.5932]
[1735056491429,3.76,197.09,196.96,1.5968]
[1735056491628,3.76,197.08,196.98,21.72898092]
[1735056492532,3.76,197.08,196.97,1.6567]
[1735056492533,3.76,197.08,197.02,21.72898092]
[1735056492729,4.7142,197.2,197.02,21.72898092]
[1735056492931,3.76,197.19,197.03,1.528]
[1735056493330,2.5393,197.1,197.03,1.528]
[1735056494128,6.2989,197.13,197.05,2.5397]
[1735056494330,3.76,197.13,197.05,2.5397]
[1735056494531,3.76,197.13,197.04,1.6199]
[1735056495230,2.5392,197.1,197.02,24.26918092]
[1735056495731,2.5392,197.1,197.03,2.54]
[1735056496324,3.76,197.13,197.02,21.72898092]
[1735056496530,2.5395,197.07,197.02,21.72898092]
[1735056500232,2.5394,197.09,197.02,24.26908092]
[1735056500437,4.7142,197.2,197.02,21.72898092]
[1735056500638,3.76,197.19,197.06,21.72898092]
[1735056500833,3.76,197.19,197.07,3.1528]
[1735056501141,2.5389,197.13,197.07,3.1528]
[1735056501734,2.5389,197.13,197.07,5.6923]
[1735056502136,2.5389,197.13,197.08,13.59933199]
[1735056502736,3.76,197.15,197.08,13.59933199]
[1735056502935,2.5389,197.12,197.08,13.59933199]
[1735056503137,3.76,197.15,197.08,16.13873199]
[1735056503334,2.5383,197.17,197.08,15.25063199]
[1735056503638,3.76,197.17,197.08,15.25063199]
[1735056503935,3.76,197.17,197.09,2.5392]
[1735056504138,3.76,197.17,197.08,15.25063199]
[1735056505438,2.5384,197.16,197.1,2.5391]
[1735056506139,2.5384,197.16,197.11,13.59933199]
[1735056506343,2.5384,197.16,197.11,16.13833199]
[1735056506539,2.5382,197.18,197.11,13.59933199]
[1735056507046,3.76,197.2,197.11,13.59933199]
[1735056507047,3.76,197.2,197.13,2.5387]
[1735056507244,1.6337,197.26,197.14,13.59933199]
[1735056507443,3.76,197.23,197.15,1.4982]
[1735056507639,3.76,197.23,197.18,2.5381]
[1735056508036,3.76,197.23,197.17,13.59933199]
[1735056508239,3.76,197.27,197.17,13.59933199]
[1735056508441,2.5375,197.23,197.17,13.59933199]
[1735056508746,3.76,197.27,197.16,19.29383199]
[1735056508942,2.5374,197.24,197.16,19.29383199]
[1735056509143,3.76,197.27,197.17,2.5382]
[1735056510244,3.76,197.27,197.16,16.75553199]
[1735056510245,2.5373,197.24,197.18,2.5381]
[1735056510447,13.59933199,197.31,197.18,2.5381]
[1735056510647,2.5375,197.23,197.17,2.5382]
[1735056513746,3.76,197.3,197.19,2.5379]
[1735056513942,3.76,197.3,197.19,16.13723199]
[1735056515350,2.5373,197.25,197.19,16.13723199]
[1735056517544,5.0702,197.42,197.22,13.59933199]
[1735056517749,15.19173199,197.39,197.25,13.59933199]
[1735056518144,2.5365,197.31,197.25,16.13653199]
[1735056518356,3.76,197.34,197.25,16.13653199]
[1735056518555,3.76,197.34,197.23,1.5293]
[1735056518751,2.5366,197.3,197.23,1.5293]
[1735056519054,13.59933199,197.33,197.23,1.5293]
[1735056519647,2.5371,197.27,197.23,1.5293]
[1735056519852,13.59933199,197.33,197.23,1.5293]
[1735056520250,2.5373,197.25,197.23,1.5293]
[1735056522854,13.59933199,197.33,197.23,1.5293]
[1735056523056,2.5373,197.24,197.23,1.5293]
[1735056524454,3.76,197.28,197.11,1.5738]
[1735056524761,13.59933199,197.27,197.12,16.75293199]
[1735056524952,2.5381,197.18,197.14,2.5386]
[1735056525153,3.76,197.21,197.15,13.59933199]
[1735056525357,3.76,197.25,197.18,13.59933199]
[1735056525557,3.76,197.25,197.2,2.5378]
[1735056525749,3.76,197.25,197.18,13.59933199]
[1735056526154,3.76,197.25,197.12,16.75293199]
[1735056526155,3.76,197.25,197.23,8.69314546]
[1735056526360,6.2973,197.25,197.23,8.69314546]
[1735056526559,3.76,197.25,197.23,8.69314546]
[1735056526756,3.76,197.28,197.23,8.69314546]
[1735056526951,8.69314546,197.33,197.25,8.69314546]
[1735056527152,3.76,197.32,197.25,8.69314546]
[1735056527753,2.5368,197.29,197.16,3.76]
[1735056527953,3.76,197.31,197.24,8.69314546]
[1735056528158,3.76,197.31,197.26,8.69314546]
[1735056529463,2.5367,197.29,197.26,8.69314546]
[1735056530851,2.5367,197.29,197.16,3.76]
[1735056531053,3.76,197.31,197.16,3.76]
[1735056531054,2.5369,197.28,197.24,8.69314546]
[1735056531256,12.45314546,197.31,197.24,8.69314546]
[1735056531457,12.45314546,197.31,197.22,8.69314546]
[1735056531655,12.45314546,197.31,197.12,58.90154393]
[1735056531854,12.45314546,197.31,197.22,8.69314546]
[1735056532260,8.69314546,197.29,197.22,8.69314546]
[1735056532564,2.5372,197.25,197.22,8.69314546]
[1735056532765,8.69314546,197.29,197.22,8.69314546]
[1735056532963,2.5376,197.22,197.2,8.69314546]
[1735056533766,2.5376,197.22,197.21,8.69314546]
[1735056534358,2.5379,197.2,197.14,2.5385]
[1735056534558,2.5379,197.2,197.19,8.69314546]
[1735056536166,2.5377,197.22,197.19,8.69314546]
[1735056536366,3.74,197.25,197.21,8.69314546]
[1735056536668,3.74,197.25,197.23,8.69314546]
[1735056537171,8.69314546,197.31,197.23,8.69314546]
[1735056537369,3.74,197.3,197.25,8.69314546]
[1735056537765,3.74,197.3,197.27,8.69314546]
[1735056538166,2.5368,197.29,197.17,2.5382]
[1735056538367,2.5368,197.29,197.25,8.69314546]
[1735056538774,2.5369,197.28,197.23,8.69314546]
[1735056539071,12.43314546,197.3,197.23,8.69314546]
[1735056539667,3.74,197.3,197.23,8.69314546]
[1735056540068,2.5372,197.26,197.2,2.5378]
[1735056540268,2.5372,197.26,197.2,16.12017403]
[1735056541377,2.5372,197.25,197.2,13.58237403]
[1735056541770,3.74,197.3,197.13,55.74794393]
[1735056541965,2.5374,197.23,197.17,2.5381]
[1735056542171,3.74,197.29,197.18,13.58237403]
[1735056542575,3.74,197.29,197.19,2.5379]
[1735056542576,2.5373,197.25,197.19,2.5379]
[1735056543368,2.5374,197.24,197.18,13.58237403]
[1735056543679,3.74,197.29,197.15,69.33031796]
[1735056543680,13.58237403,197.28,197.15,69.33031796]
[1735056543869,2.5378,197.21,197.15,69.33031796]
[1735056544678,6.2776,197.22,197.15,13.58237403]
[1735056544876,3.74,197.22,197.15,13.58237403]
[1735056545278,2.5379,197.2,197.15,16.12077403]
[1735056545576,3.74,197.22,197.15,13.58237403]